fUSD/lending_fUSD_20250513
["ID","MTS","AMOUNT","RATE_DAILY","PERIOD"]
[360914084,1747143032168,-500.0,9.843e-05,2]
[360914085,1747143032177,-500.0,9.843e-05,2]
[360914086,1747143032187,-500.0,9.843e-05,2]
[360914087,1747143032196,-500.0,9.843e-05,2]
[360914088,1747143032205,-121.23535199,9.843e-05,2]
[360914089,1747143032217,-378.76464801,9.843e-05,2]
[360914090,1747143032227,-500.0,9.843e-05,2]
[360914091,1747143032237,-500.0,9.843e-05,2]
[360914092,1747143032246,-500.0,9.843e-05,2]
[360914093,1747143032255,-500.0,9.843e-05,2]
[360914094,1747143032264,-243.96097469,9.843e-05,2]
[360914095,1747143032303,-256.03902531,9.843e-05,2]
[360914096,1747143032312,-52.80157611,9.843e-05,2]
[360914097,1747143032443,-434.545005,9.843e-05,2]
[360914189,1747143038107,-12.65341889,9.843e-05,2]
[360914190,1747143038116,-500.0,9.843e-05,2]
[360914191,1747143038126,-500.0,9.843e-05,2]
[360914192,1747143038135,-60.39817116,9.843e-05,2]
[360914193,1747143038147,-439.60182884,9.843e-05,2]
[360914194,1747143038157,-263.05480002,9.843e-05,2]
[360914195,1747143038215,-236.94519998,9.843e-05,2]
[360914196,1747143038224,-202.68326437,9.843e-05,2]
[360914197,1747143040192,-297.31673563,9.843e-05,2]
[360914198,1747143040202,-536.49339262,9.843e-05,2]
[360914199,1747143040212,-500.0,9.843e-05,2]
[360914200,1747143040222,-500.0,9.843e-05,2]
[360914201,1747143040232,-500.0,9.843e-05,2]
[360914202,1747143040242,-500.0,9.843e-05,2]
[360914203,1747143040252,-500.0,9.843e-05,2]
[360914204,1747143040261,-500.0,9.843e-05,2]
[360914205,1747143040271,-500.0,9.843e-05,2]
[360914206,1747143040281,-500.0,9.843e-05,2]
[360914207,1747143040291,-500.0,9.843e-05,2]
[360914208,1747143040300,-500.0,9.843e-05,2]
[360914209,1747143040309,-500.0,9.843e-05,2]
[360914210,1747143040319,-500.0,9.843e-05,2]
[360914211,1747143040328,-500.0,9.843e-05,2]
[360914212,1747143040338,-400.0,9.843e-05,2]
[360914213,1747143040347,-500.0,9.843e-05,2]
[360914214,1747143040357,-500.0,9.843e-05,2]
[360914215,1747143040367,-500.0,9.843e-05,2]
[360914216,1747143040376,-500.0,9.843e-05,2]
[360914217,1747143040385,-500.0,9.843e-05,2]
[360914218,1747143040395,-500.0,9.843e-05,2]
[360914219,1747143040404,-500.0,9.843e-05,2]
[360914220,1747143040414,-1875.002,9.853e-05,2]
[360914221,1747143040425,-1000.0,9.853e-05,2]
[360914222,1747143040435,-172.45,9.853e-05,2]
[360914223,1747143040444,-588.84,9.863e-05,2]
[360914224,1747143040453,-1308.54,9.89e-05,2]
[360914225,1747143040463,-1179.04,9.917e-05,2]
[360914226,1747143040473,-162.29,9.939e-05,2]
[360914227,1747143040482,-161.6,9.971e-05,2]
[360914228,1747143040491,-2939.2671328,0.0001,2]
[360914229,1747143040501,-216.90487217,0.0001,2]
[360914230,1747143040510,-972.21,0.0001,2]
[360914231,1747143040519,-9339.04586678,0.00010079,2]
[360914232,1747143040538,-368.17471196,0.00010079,2]
[360914233,1747143040560,-4177.66357141,0.00010079,2]
[360914234,1747143040571,-434.05150997,0.00010079,2]
[360914235,1747143040590,-3612.03433988,0.00010079,2]
[360914236,1747143040599,-700.0,0.000101,3]
[360914237,1747143040608,-2128.78,0.00010156,2]
[360914238,1747143040617,-1400.0,0.000102,3]
[360914239,1747143040627,-2200.0,0.000103,3]
[360914240,1747143040636,-250.0,0.00010377,2]
[360914241,1747143040645,-2900.0,0.000104,3]
[360914242,1747143040654,-1297.68,0.00010465,2]
[360914243,1747143040664,-189.43476917,0.00010476,2]
[360914244,1747143040675,-3700.0,0.000105,3]
[360914245,1747143040685,-700.0,0.000106,3]
[360914246,1747143040694,-700.0,0.000107,3]
[360914247,1747143040703,-530.0,0.00010702,2]
[360914248,1747143040713,-500.0,0.00010712,2]
[360914249,1747143040723,-700.0,0.000108,3]
[360914250,1747143040732,-543.0,0.00010818,2]
[360914251,1747143040745,-1680.0,0.00010826,2]
[360914252,1747143040755,-250.0,0.00010838,2]
[360914253,1747143040764,-62981.28987145,0.0001089,2]
[360914254,1747143040773,-567.00328863,0.00010896,2]
[360914255,1747143040782,-155.81354302,0.000109,2]
[360914256,1747143040792,-273.93803422,0.000109,2]
[360914257,1747143040801,-700.0,0.000109,3]
[360914258,1747143040811,-215.09433228,0.000109,2]
[360914259,1747143040821,-1491.17230132,0.000109,2]
[360914260,1747143040830,-164.17928927,0.000109,2]
[360914261,1747143040840,-273.93803421,0.00010908,2]
[360914262,1747143040849,-215.09433228,0.00010908,2]
[360914263,1747143040859,-1491.17230132,0.00010908,2]
[360914264,1747143040868,-273.93803421,0.00010915,2]
[360914265,1747143040877,-215.09433228,0.00010916,2]
[360914266,1747143040887,-164.17928927,0.00010916,2]
[360914267,1747143040896,-1491.17230132,0.00010916,2]
[360914268,1747143040905,-567.00328863,0.00010916,2]
[360914269,1747143040915,-500.0,0.00010959,2]
[360914270,1747143040925,-200.0,0.00010959,2]
[360914271,1747143040934,-500.0,0.00010973,2]
[360914272,1747143040944,-500.0,0.00010973,2]
[360914273,1747143040953,-501.72453917,0.00010973,2]
[360914274,1747143040963,-360.34395935,0.00010973,2]
[360914275,1747143040973,-500.0,0.00010973,2]
[360914276,1747143040982,-515.31430227,0.00010973,2]
[360914277,1747143040992,-500.0,0.00010973,2]
[360914278,1747143041001,-500.0,0.00010973,2]
[360914279,1747143041011,-500.0,0.00010973,2]
[360914280,1747143041021,-500.0,0.00010973,2]
[360914281,1747143041031,-500.0,0.00010973,2]
[360914282,1747143041041,-500.0,0.00010973,2]
[360914283,1747143041050,-500.0,0.00010973,2]
[360914284,1747143041060,-400.0,0.00010995,2]
[360914285,1747143041070,-400.0,0.00010995,2]
[360914286,1747143041079,-400.0,0.00010995,2]
[360914287,1747143041088,-404.76007591,0.00010995,2]
[360914288,1747143041098,-400.0,0.00010995,2]
[360914289,1747143041107,-400.0,0.00010995,2]
[360914290,1747143041117,-400.0,0.00010995,2]
[360914291,1747143041126,-978.11,0.00010995,2]
[360914292,1747143041136,-694.09,0.00010995,2]
[360914293,1747143041145,-400.0,0.00010995,2]
[360914294,1747143041155,-608.5,0.00010995,2]
[360914295,1747143041164,-483.13,0.00010995,2]
[360914296,1747143041177,-809.17,0.00010995,2]
[360914297,1747143041186,-400.0,0.00010995,2]
[360914298,1747143041196,-400.0,0.00010995,2]
[360914299,1747143041205,-400.0,0.00010995,2]
[360914300,1747143041215,-400.0,0.00010995,2]
[360914301,1747143041225,-462.08,0.00010995,2]
[360914302,1747143041234,-2491.98,0.00010995,2]
[360914303,1747143041243,-538.550147,0.00010995,2]
[360914304,1747143041252,-5020.83098,0.00010995,2]
[360914305,1747143041261,-400.0,0.00010995,2]
[360914306,1747143041270,-400.0,0.00010995,2]
[360914307,1747143041279,-400.0,0.00010995,2]
[360914308,1747143041288,-400.0,0.00010995,2]
[360914309,1747143041297,-936.25,0.00010995,2]
[360914310,1747143041307,-400.0,0.00010995,2]
[360914311,1747143041317,-400.0,0.00010995,2]
[360914312,1747143041326,-592.57,0.00010995,2]
[360914313,1747143041336,-400.0,0.00010995,2]
[360914314,1747143041345,-525.78996043,0.00010995,2]
[360914315,1747143041354,-454.55,0.00010995,2]
[360914316,1747143041364,-400.0,0.00010995,2]
[360914317,1747143041373,-400.0,0.00010995,2]
[360914318,1747143041383,-947.68,0.00010995,2]
[360914319,1747143041392,-400.0,0.00010995,2]
[360914320,1747143041402,-829.187296,0.00010995,2]
[360914321,1747143041411,-400.0,0.00010995,2]
[360914322,1747143041734,-810.12,0.00010995,2]
[360914323,1747143041748,-595.61,0.00010995,2]
[360914324,1747143041757,-2454.67,0.00010995,2]
[360914325,1747143041767,-400.0,0.00010995,2]
[360914326,1747143041777,-400.0,0.00010996,2]
[360914327,1747143041786,-400.0,0.00010996,2]
[360914328,1747143041796,-1434.7,0.00010996,2]
[360914329,1747143041806,-400.0,0.00010996,2]
[360914330,1747143041816,-400.0,0.00010996,2]
[360914331,1747143041826,-400.0,0.00010996,2]
[360914332,1747143041836,-400.0,0.00010996,2]
[360914333,1747143041846,-400.0,0.00010996,2]
[360914334,1747143041855,-400.0,0.00010996,2]
[360914335,1747143041865,-519.84577947,0.00010996,2]
[360914336,1747143041874,-400.0,0.00010996,2]
[360914337,1747143041884,-430.42169921,0.00010996,2]
[360914338,1747143041893,-400.0,0.00010996,2]
[360914339,1747143041902,-513.3080734,0.00010996,2]
[360914340,1747143041912,-400.0,0.00010996,2]
[360914341,1747143041924,-496.27920888,0.00010996,2]
[360914342,1747143041934,-400.0,0.00010996,2]
[360914343,1747143041943,-290.93891347,0.00010996,2]
[360914344,1747143041953,-403.41635585,0.00010996,2]
[360914345,1747143041963,-400.0,0.00010996,2]
[360914346,1747143041972,-400.0,0.00010996,2]
[360914347,1747143041982,-400.0,0.00010996,2]
[360914348,1747143041991,-217.48385166,0.00010996,2]
[360914349,1747143042001,-400.0,0.00010996,2]
[360914350,1747143042011,-400.0,0.00010996,2]
[360914351,1747143042020,-250.0,0.00010996,2]
[360914352,1747143042030,-400.0,0.00010996,2]
[360914353,1747143042041,-400.0,0.00010996,2]
[360914354,1747143042051,-400.0,0.00010996,2]
[360914355,1747143042060,-400.0,0.00010996,2]
[360914356,1747143042070,-484.4755416,0.00010996,2]
[360914357,1747143042079,-400.0,0.00010996,2]
[360914358,1747143042089,-400.0,0.00010996,2]
[360914359,1747143042098,-400.0,0.00010996,2]
[360914360,1747143042108,-400.0,0.00010996,2]
[360914361,1747143042118,-400.0,0.00010996,2]
[360914362,1747143042127,-400.0,0.00010996,2]
[360914363,1747143042137,-400.0,0.00010996,2]
[360914364,1747143042146,-400.0,0.00010996,2]
[360914365,1747143042156,-738.26,0.00010996,2]
[360914366,1747143042165,-400.0,0.00010996,2]
[360914367,1747143042179,-400.0,0.00010996,2]
[360914368,1747143042189,-400.0,0.00010996,2]
[360914369,1747143042198,-400.0,0.00010996,2]
[360914370,1747143042208,-400.0,0.00010996,2]
[360914371,1747143042217,-400.0,0.00010996,2]
[360914372,1747143042227,-400.0,0.00010996,2]
[360914373,1747143042236,-400.0,0.00010996,2]
[360914374,1747143042246,-400.0,0.00010996,2]
[360914375,1747143042255,-400.0,0.00010996,2]
[360914376,1747143042264,-547.16404726,0.00010996,2]
[360914377,1747143042273,-431.35102983,0.00010996,2]
[360914378,1747143042282,-400.0,0.00010996,2]
[360914379,1747143042292,-464.40215216,0.00010996,2]
[360914380,1747143042302,-506.13218772,0.00010996,2]
[360914381,1747143042312,-400.0,0.00010996,2]
[360914382,1747143042321,-460.07900053,0.00010996,2]
[360914383,1747143042331,-400.0,0.00010996,2]
[360914384,1747143042340,-400.0,0.00010996,2]
[360914385,1747143042350,-400.0,0.00010996,2]
[360914386,1747143042361,-400.0,0.00010996,2]
[360914387,1747143042371,-400.0,0.00010996,2]
[360914388,1747143042380,-753.88,0.00010996,2]
[360914389,1747143042389,-400.0,0.00010996,2]
[360914390,1747143042398,-400.0,0.00010996,2]
[360914391,1747143042407,-400.0,0.00010996,2]
[360914392,1747143042416,-400.0,0.00010996,2]
[360914393,1747143042427,-400.0,0.00010996,2]
[360914394,1747143042436,-400.0,0.00010996,2]
[360914395,1747143042446,-458.19456859,0.00010996,2]
[360914396,1747143042455,-600.32,0.00010996,2]
[360914397,1747143042464,-1058.26,0.00010996,2]
[360914398,1747143042473,-4750.28,0.00010996,2]
[360914399,1747143042483,-400.0,0.00010996,2]
[360914400,1747143042491,-1794.26,0.00010996,2]
[360914401,1747143042501,-400.0,0.00010996,2]
[360914402,1747143042510,-466.82,0.00010996,2]
[360914403,1747143042520,-430.15786004,0.00010996,2]
[360914404,1747143042529,-400.0,0.00010996,2]
[360914405,1747143042538,-400.0,0.00010996,2]
[360914406,1747143042548,-400.0,0.00010996,2]
[360914407,1747143042558,-400.0,0.00010996,2]
[360914408,1747143042567,-400.0,0.00010996,2]
[360914409,1747143042577,-400.0,0.00010996,2]
[360914410,1747143042586,-530.65,0.00010996,2]
[360914411,1747143042596,-400.0,0.00010996,2]
[360914412,1747143042605,-400.0,0.00010996,2]
[360914413,1747143042615,-415.23204008,0.00010996,2]
[360914414,1747143042624,-500.0,0.00010996,2]
[360914415,1747143042633,-411.87166165,0.00010996,2]
[360914416,1747143042642,-400.0,0.00010996,2]
[360914417,1747143042652,-400.0,0.00010996,2]
[360914418,1747143042662,-400.0,0.00010996,2]
[360914419,1747143042674,-400.0,0.00010996,2]
[360914420,1747143042683,-400.0,0.00010996,2]
[360914421,1747143042693,-400.0,0.00010996,2]
[360914422,1747143042702,-400.0,0.00010996,2]
[360914423,1747143042711,-400.0,0.00010996,2]
[360914424,1747143042721,-400.0,0.00010996,2]
[360914425,1747143042730,-400.0,0.00010996,2]
[360914426,1747143042742,-402.14470333,0.00010996,2]
[360914427,1747143042752,-400.0,0.00010996,2]
[360914428,1747143042761,-400.0,0.00010996,2]
[360914429,1747143042770,-400.0,0.00010996,2]
[360914430,1747143042779,-400.0,0.00010996,2]
[360914431,1747143042790,-400.0,0.00010996,2]
[360914432,1747143042800,-400.0,0.00010996,2]
[360914433,1747143042811,-167.51622088,0.00010996,2]
[360914434,1747143042823,-499.1281089,0.00010996,2]
[360914435,1747143042834,-400.0,0.00010996,2]
[360914436,1747143042844,-400.0,0.00010996,2]
[360914437,1747143042854,-400.0,0.00010996,2]
[360914438,1747143042865,-400.0,0.00010996,2]
[360914439,1747143042875,-400.0,0.00010996,2]
[360914440,1747143042884,-1632.98,0.00010996,2]
[360914441,1747143042894,-400.0,0.00010996,2]
[360914442,1747143042904,-400.0,0.00010996,2]
[360914444,1747143042913,-402.5104399,0.00010996,2]
[360914445,1747143042925,-401.08988219,0.00010996,2]
[360914446,1747143042934,-402.39896548,0.00010996,2]
[360914447,1747143042944,-400.0,0.00010996,2]
[360914448,1747143042953,-696.55,0.00010996,2]
[360914449,1747143042963,-486.46,0.00010996,2]
[360914450,1747143042974,-400.0,0.00010996,2]
[360914451,1747143042983,-762.7,0.00010996,2]
[360914452,1747143042993,-403.3948829,0.00010996,2]
[360914453,1747143043003,-400.0,0.00010996,2]
[360914455,1747143043013,-1771.68,0.00010996,2]
[360914457,1747143043023,-400.0,0.00010996,2]
[360914459,1747143043032,-565.32,0.00010996,2]
[360914461,1747143043042,-400.0,0.00010996,2]
[360914462,1747143043051,-745.11,0.00010996,2]
[360914463,1747143043061,-413.49651247,0.00010996,2]
[360914464,1747143043071,-508.26,0.00010996,2]
[360914465,1747143043081,-400.0,0.00010996,2]
[360914466,1747143043091,-400.0,0.00010996,2]
[360914467,1747143043101,-754.35,0.00010996,2]
[360914468,1747143043111,-400.0,0.00010996,2]
[360914469,1747143043120,-889.02,0.00010996,2]
[360914470,1747143043130,-400.0,0.00010996,2]
[360914471,1747143043140,-644.95,0.00010996,2]
[360914472,1747143043149,-400.0,0.00010996,2]
[360914473,1747143043159,-400.0,0.00010996,2]
[360914474,1747143043168,-400.0,0.00010996,2]
[360914475,1747143043179,-400.0,0.00010996,2]
[360914476,1747143043189,-892.77,0.00010996,2]
[360914477,1747143043198,-400.0,0.00010996,2]
[360914478,1747143043208,-400.0,0.00010996,2]
[360914479,1747143043217,-159.76915176,0.00010996,2]
[360914480,1747143043227,-402.33490798,0.00010996,2]
[360914481,1747143043236,-1221.34,0.00010996,2]
[360914482,1747143043246,-400.0,0.00010996,2]
[360914483,1747143043255,-400.0,0.00010996,2]
[360914484,1747143043265,-3813.94,0.00010996,2]
[360914485,1747143043275,-400.0,0.00010996,2]
[360914486,1747143043284,-505.1007295,0.00010996,2]
[360914487,1747143043293,-400.0,0.00010996,2]
[360914488,1747143043303,-400.0,0.00010996,2]
[360914489,1747143043312,-400.0,0.00010996,2]
[360914490,1747143043322,-400.0,0.00010996,2]
[360914491,1747143043331,-400.0,0.00010996,2]
[360914492,1747143043341,-544.9007751,0.00010996,2]
[360914493,1747143043350,-400.0,0.00010996,2]
[360914494,1747143043360,-400.0,0.00010996,2]
[360914495,1747143043369,-450.0,0.00010996,2]
[360914496,1747143043378,-467.62,0.00010996,2]
[360914497,1747143043387,-400.0,0.00010996,2]
[360914498,1747143043396,-400.0,0.00010996,2]
[360914499,1747143043406,-448.89,0.00010996,2]
[360914500,1747143043415,-400.0,0.00010996,2]
[360914501,1747143043425,-400.0,0.00010996,2]
[360914502,1747143043434,-400.0,0.00010996,2]
[360914503,1747143043444,-565.95,0.00010996,2]
[360914504,1747143043453,-507.38,0.00010996,2]
[360914505,1747143043462,-626.22,0.00010996,2]
[360914506,1747143043471,-2971.21,0.00010996,2]
[360914507,1747143043480,-347.38409098,0.00010996,2]
[360914508,1747143043489,-400.0,0.00010996,2]
[360914509,1747143043498,-400.0,0.00010996,2]
[360914510,1747143043507,-516.33181801,0.00010996,2]
[360914511,1747143043516,-753.03,0.00010996,2]
[360914512,1747143043526,-400.0,0.00010996,2]
[360914513,1747143043536,-1027.57,0.00010996,2]
[360914514,1747143043545,-400.0,0.00010996,2]
[360914515,1747143043554,-400.0,0.00010996,2]
[360914517,1747143043564,-400.0,0.00010996,2]
[360914519,1747143043573,-400.0,0.00010996,2]
[360914520,1747143043583,-400.0,0.00010996,2]
[360914523,1747143043594,-2594.38,0.00010996,2]
[360914524,1747143043604,-400.0,0.00010996,2]
[360914527,1747143043614,-400.0,0.00010996,2]
[360914528,1747143043624,-400.0,0.00010996,2]
[360914530,1747143043633,-419.4,0.00010996,2]
[360914533,1747143043645,-857.12,0.00010996,2]
[360914535,1747143043654,-400.0,0.00010996,2]
[360914537,1747143043663,-1280.81,0.00010996,2]
[360914539,1747143043674,-4336.09,0.00010996,2]
[360914541,1747143043683,-402.68788391,0.00010996,2]
[360914543,1747143043692,-400.0,0.00010996,2]
[360914545,1747143043701,-400.0,0.00010996,2]
[360914547,1747143043711,-400.0,0.00010996,2]
[360914549,1747143043721,-400.0,0.00010996,2]
[360914551,1747143043730,-1127.7,0.00010996,2]
[360914553,1747143043743,-400.0,0.00010996,2]
[360914555,1747143043753,-400.0,0.00010996,2]
[360914557,1747143043762,-400.0,0.00010996,2]
[360914559,1747143043771,-598.79,0.00010996,2]
[360914561,1747143043781,-400.0,0.00010996,2]
[360914563,1747143043791,-1458.49,0.00010996,2]
[360914565,1747143043800,-400.0,0.00010996,2]
[360914567,1747143043809,-400.0,0.00010996,2]
[360914569,1747143043820,-400.0,0.00010996,2]
[360914571,1747143043829,-400.0,0.00010996,2]
[360914573,1747143043839,-400.0,0.00010996,2]
[360914575,1747143043848,-400.0,0.00010996,2]
[360914577,1747143043857,-400.0,0.00010996,2]
[360914579,1747143043866,-400.0,0.00010996,2]
[360914581,1747143043875,-400.0,0.00010996,2]
[360914583,1747143043885,-400.0,0.00010996,2]
[360914585,1747143043895,-402.45689168,0.00010996,2]
[360914587,1747143043904,-1401.58,0.00010996,2]
[360914589,1747143043913,-400.0,0.00010996,2]
[360914590,1747143043924,-400.0,0.00010996,2]
[360914593,1747143043934,-400.0,0.00010996,2]
[360914595,1747143043943,-1078.81,0.00010996,2]
[360914597,1747143043952,-440.8,0.00010996,2]
[360914599,1747143043962,-400.0,0.00010996,2]
[360914601,1747143043972,-2134.61,0.00010996,2]
[360914603,1747143043981,-829.32,0.00010996,2]
[360914605,1747143043991,-400.0,0.00010996,2]
[360914607,1747143044000,-400.0,0.00010996,2]
[360914609,1747143044009,-400.0,0.00010996,2]
[360914611,1747143044019,-400.0,0.00010996,2]
[360914612,1747143044028,-400.0,0.00010996,2]
[360914615,1747143044038,-628.86,0.00010996,2]
[360914617,1747143044047,-472.11,0.00010996,2]
[360914619,1747143044056,-600.43,0.00010996,2]
[360914621,1747143044066,-400.0,0.00010996,2]
[360914623,1747143044075,-566.11,0.00010996,2]
[360914625,1747143044084,-868.51,0.00010996,2]
[360914627,1747143044094,-421.47,0.00010996,2]
[360914629,1747143044104,-453.39,0.00010996,2]
[360914631,1747143044113,-400.0,0.00010996,2]
[360914633,1747143044123,-816.48,0.00010996,2]
[360914635,1747143044132,-400.0,0.00010996,2]
[360914637,1747143044141,-400.0,0.00010996,2]
[360914639,1747143044150,-449.98,0.00010996,2]
[360914641,1747143044159,-400.0,0.00010996,2]
[360914643,1747143044168,-400.0,0.00010996,2]
[360914645,1747143044182,-400.0,0.00010996,2]
[360914647,1747143044191,-264.77102643,0.00010996,2]
[360914649,1747143044200,-1552.12,0.00010996,2]
[360914650,1747143044210,-400.0,0.00010996,2]
[360914651,1747143044219,-4007.29,0.00010996,2]
[360914652,1747143044229,-1251.04,0.00010996,2]
[360914653,1747143044238,-1006.75,0.00010996,2]
[360914654,1747143044247,-400.0,0.00010996,2]
[360914655,1747143044256,-400.0,0.00010996,2]
[360914656,1747143044265,-400.0,0.00010996,2]
[360914657,1747143044275,-400.0,0.00010996,2]
[360914658,1747143044285,-400.0,0.00010996,2]
[360914659,1747143044294,-677.25,0.00010996,2]
[360914660,1747143044304,-732.33,0.00010996,2]
[360914661,1747143044314,-400.0,0.00010996,2]
[360914662,1747143044323,-400.0,0.00010996,2]
[360914663,1747143044332,-683.45,0.00010996,2]
[360914664,1747143044342,-704.85,0.00010996,2]
[360914665,1747143044351,-1377.58,0.00010996,2]
[360914666,1747143044360,-400.0,0.00010996,2]
[360914667,1747143044370,-400.0,0.00010996,2]
[360914668,1747143044379,-400.0,0.00010996,2]
[360914669,1747143044390,-400.0,0.00010996,2]
[360914670,1747143044399,-946.26,0.00010996,2]
[360914671,1747143044410,-765.85,0.00010996,2]
[360914672,1747143044419,-621.91,0.00010996,2]
[360914673,1747143044429,-716.68,0.00010996,2]
[360914674,1747143044438,-400.0,0.00010996,2]
[360914675,1747143044448,-2846.83,0.00010996,2]
[360914676,1747143044457,-668.7,0.00010996,2]
[360914677,1747143044467,-2322.23,0.00010996,2]
[360914678,1747143044476,-443.61,0.00010996,2]
[360914679,1747143044486,-400.0,0.00010996,2]
[360914680,1747143044496,-400.0,0.00010996,2]
[360914681,1747143044505,-519.73115026,0.00010996,2]
[360914682,1747143044515,-476.74,0.00010996,2]
[360914683,1747143044525,-797.53,0.00010996,2]
[360914684,1747143044535,-1455.78,0.00010996,2]
[360914685,1747143044545,-614.64,0.00010996,2]
[360914686,1747143044555,-1421.54,0.00010996,2]
[360914687,1747143044565,-1023.62,0.00010996,2]
[360914688,1747143044574,-400.0,0.00010996,2]
[360914689,1747143044584,-478.65,0.00010996,2]
[360914690,1747143044593,-400.0,0.00010996,2]
[360914691,1747143044602,-2274.51,0.00010996,2]
[360914692,1747143044611,-2092.97,0.00010996,2]
[360914693,1747143044621,-669.25,0.00010996,2]
[360914694,1747143044630,-400.0,0.00010996,2]
[360914695,1747143044640,-400.0,0.00010996,2]
[360914696,1747143044649,-400.0,0.00010996,2]
[360914697,1747143044659,-400.0,0.00010996,2]
[360914698,1747143044669,-1390.82,0.00010996,2]
[360914699,1747143044679,-400.0,0.00010996,2]
[360914700,1747143044689,-612.63,0.00010996,2]
[360914701,1747143044698,-400.0,0.00010996,2]
[360914702,1747143044708,-1190.97,0.00010996,2]
[360914703,1747143044717,-1544.34,0.00010996,2]
[360914704,1747143044727,-400.0,0.00010996,2]
[360914705,1747143044736,-400.0,0.00010996,2]
[360914706,1747143044749,-400.0,0.00010996,2]
[360914707,1747143044759,-641.49,0.00010996,2]
[360914708,1747143044769,-400.0,0.00010996,2]
[360914709,1747143044778,-412.35,0.00010996,2]
[360914710,1747143044789,-400.0,0.00010996,2]
[360914711,1747143044799,-885.54,0.00010996,2]
[360914712,1747143044808,-422.97,0.00010996,2]
[360914713,1747143044819,-400.0,0.00010996,2]
[360914714,1747143044829,-842.33,0.00010996,2]
[360914715,1747143044839,-544.17,0.00010996,2]
[360914716,1747143044848,-400.0,0.00010996,2]
[360914717,1747143044859,-1753.4,0.00010996,2]
[360914718,1747143044868,-421.86,0.00010996,2]
[360914719,1747143044878,-400.0,0.00010996,2]
[360914720,1747143044888,-1106.76,0.00010996,2]
[360914721,1747143044898,-400.0,0.00010996,2]
[360914722,1747143044908,-400.0,0.00010996,2]
[360914723,1747143044918,-400.0,0.00010996,2]
[360914724,1747143044930,-1016.65,0.00010996,2]
[360914725,1747143044939,-5423.41,0.00010996,2]
[360914726,1747143044949,-3323.42,0.00010996,2]
[360914727,1747143044959,-1383.86,0.00010996,2]
[360914728,1747143044970,-194.56706315,0.00010996,2]
[360914729,1747143044980,-2251.09,0.00010996,2]
[360914730,1747143044990,-400.0,0.00010996,2]
[360914731,1747143045000,-979.65,0.00010996,2]
[360914732,1747143045010,-1218.11,0.00010996,2]
[360914733,1747143045019,-11611.79,0.00010996,2]
[360914734,1747143045029,-531.69,0.00010996,2]
[360914735,1747143045039,-448.49,0.00010996,2]
[360914736,1747143045049,-858.68,0.00010996,2]
[360914737,1747143045058,-1485.83,0.00010996,2]
[360914738,1747143045068,-3078.3,0.00010996,2]
[360914739,1747143045078,-400.0,0.00010996,2]
[360914740,1747143045087,-2133.73,0.00010996,2]
[360914741,1747143045097,-575.68,0.00010996,2]
[360914742,1747143045107,-1298.4,0.00010996,2]
[360914743,1747143045116,-1117.64,0.00010996,2]
[360914744,1747143045126,-450.76,0.00010996,2]
[360914745,1747143045136,-795.21,0.00010996,2]
[360914746,1747143045146,-827.12,0.00010996,2]